bitfinex-derivatives/quotes_BNBF0:USTF0_20250509
["timestamp","ask_amount","ask_price","bid_price","bid_amount"]
[1746815096482,0.26430066,636.47,636.01,1.014]
[1746815104381,0.27357845,636.48,636.01,1.014]
[1746815104786,0.26440094,636.47,636.01,1.014]
[1746815105487,0.26440094,636.47,636.01,0.532]
[1746815108088,0.26440094,636.47,636.02,0.548]
[1746815113991,0.27357953,636.46,636.02,0.548]
[1746815114391,0.26440094,636.45,636.02,0.548]
[1746815118896,0.26440094,636.45,636.02,1.068]
[1746815120101,0.27353222,636.44,636.02,1.068]
[1746815120499,0.26440094,636.43,636.02,1.068]
[1746815122500,0.27353222,636.44,636.02,1.068]
[1746815122899,0.26438926,636.43,636.02,1.068]
[1746815126200,0.2735376,636.48,636.02,1.068]
[1746815126796,0.2643517,636.47,636.02,1.068]
[1746815129303,0.2735376,636.48,636.02,1.068]
[1746815129605,0.2643517,636.47,636.02,1.068]
[1746815131805,0.765,636.59,636.02,1.068]
[1746815132106,0.2735376,636.48,636.02,1.068]
[1746815132405,0.26434978,636.58,636.02,1.068]
[1746815132606,0.26434978,636.47,636.02,1.068]
[1746815133908,0.2735376,636.48,636.02,1.068]
[1746815134305,0.26435248,636.47,636.02,1.068]
[1746815135105,0.2735376,636.48,636.02,1.068]
[1746815135302,0.26435248,636.47,636.02,1.068]
[1746815136907,0.2735376,636.48,636.02,1.068]
[1746815137208,0.26432705,636.47,636.02,1.068]
[1746815138210,0.27353545,636.49,636.02,1.068]
[1746815138407,0.26432705,636.48,636.02,1.068]
[1746815140910,0.26432705,636.58,636.02,1.068]
[1746815141109,0.2735204,636.56,636.02,1.068]
[1746815141303,0.26432705,636.55,636.02,1.068]
[1746815141909,0.26432705,636.58,636.02,1.068]
[1746815142105,0.26432705,636.54,636.02,1.068]
[1746815142309,0.26432705,636.58,636.02,1.068]
[1746815147715,0.765,636.59,636.02,1.068]
[1746815147917,0.26425762,636.58,636.02,1.068]
[1746815151616,0.26425762,636.58,636.02,1.6]
[1746815153116,0.765,636.59,636.02,1.6]
[1746815153317,0.26424162,636.58,636.02,1.6]
[1746815164828,0.765,636.59,636.02,1.6]
[1746815165125,0.26424406,636.58,636.02,1.6]
[1746815169232,0.26424406,636.62,636.02,1.6]
[1746815171229,0.26424406,637.01,636.02,1.6]
[1746815172229,0.27347203,637.0,636.02,1.6]
[1746815172428,0.70147203,637.0,636.02,1.6]
[1746815172933,0.26424406,636.99,636.02,1.6]
[1746815173433,0.26424406,636.98,636.02,1.6]
[1746815173734,0.26424406,636.97,636.02,1.6]
[1746815174136,0.26424406,636.96,636.02,1.6]
[1746815174430,0.26424406,636.95,636.02,1.6]
[1746815175334,0.26424406,636.94,636.02,1.6]
[1746815176035,0.26424406,636.96,636.02,1.6]
[1746815176336,0.26424406,636.95,636.02,1.6]
[1746815176736,0.26424406,636.94,636.02,1.6]
[1746815177037,0.26424406,636.93,636.02,1.6]
[1746815177337,0.26424406,636.96,636.02,1.6]
[1746815177736,0.26424406,636.95,636.02,1.6]
[1746815178138,0.26424406,636.94,636.02,1.6]
[1746815178337,0.26424406,636.93,636.02,1.6]
[1746815179039,0.26424406,636.96,636.02,1.6]
[1746815179438,0.26424406,636.95,636.02,1.6]
[1746815179740,0.26424406,636.94,636.02,1.6]
[1746815180039,0.26424406,636.96,636.02,1.6]
[1746815180435,0.26424406,636.95,636.02,1.6]
[1746815180836,0.26424406,636.94,636.02,1.6]
[1746815181641,0.26424406,636.96,636.02,1.6]
[1746815181941,0.26424406,636.95,636.02,1.6]
[1746815182435,0.26424406,636.94,636.02,1.6]
[1746815182641,0.26424406,636.93,636.02,1.6]
[1746815183042,0.26424406,636.92,636.02,1.6]
[1746815183341,0.26424406,636.91,636.02,1.6]
[1746815183645,0.26424406,636.9,636.02,1.6]
[1746815183839,0.26424406,636.89,636.02,1.6]
[1746815184344,0.26424406,636.88,636.02,1.6]
[1746815184640,0.26424406,636.87,636.02,1.6]
[1746815185046,0.26424406,636.86,636.02,1.6]
[1746815185546,0.26424406,636.85,636.02,1.6]
[1746815185847,0.26424406,636.84,636.02,1.6]
[1746815186247,0.26424406,636.83,636.02,1.6]
[1746815186447,0.26424406,636.82,636.02,1.6]
[1746815186848,0.26424406,636.81,636.02,1.6]
[1746815187548,0.26424406,636.8,636.02,1.6]
[1746815187943,0.26424406,636.79,636.02,1.6]
[1746815188347,0.26424406,636.78,636.02,1.6]
[1746815188647,0.26424406,636.77,636.02,1.6]
[1746815189044,0.26424406,636.76,636.02,1.6]
[1746815189343,0.53774833,636.76,636.02,1.6]
[1746815189546,0.26424406,636.75,636.02,1.6]
[1746815190047,0.26424406,636.74,636.02,1.6]
[1746815190348,0.26424406,636.73,636.02,1.6]
[1746815190643,0.26424406,636.72,636.02,1.6]
[1746815191242,0.26424406,636.71,636.02,1.6]
[1746815191649,0.27350427,636.76,636.02,1.6]
[1746815191848,0.26431738,636.75,636.02,1.6]
[1746815192148,0.26431738,636.74,636.02,1.6]
[1746815192549,0.26431738,636.73,636.02,1.6]
[1746815192849,0.26431738,636.72,636.02,1.6]
[1746815193146,0.27349782,636.75,636.02,1.6]
[1746815193147,0.26431738,636.71,636.02,1.6]
[1746815193649,0.26431738,636.7,636.02,1.6]
[1746815193949,0.26431738,636.69,636.02,1.6]
[1746815194751,0.26431738,636.68,636.02,1.6]
[1746815195045,0.26431738,636.67,636.02,1.6]
[1746815195350,0.26431738,636.66,636.02,1.6]
[1746815195650,0.26431738,636.65,636.02,1.6]
[1746815196052,0.26431738,636.64,636.02,1.6]
[1746815196747,0.26431738,636.63,636.02,1.6]
[1746815196953,0.26431738,636.74,636.02,1.6]
[1746815197354,0.26431738,636.73,636.02,1.6]
[1746815197654,0.26431738,636.72,636.02,1.6]
[1746815197956,0.26431738,636.71,636.02,1.6]
[1746815198255,0.26431738,636.7,636.02,1.6]
[1746815198553,0.26431738,636.69,636.02,1.6]
[1746815198754,0.26431738,636.68,636.02,1.6]
[1746815199054,0.26431738,636.67,636.02,1.6]
[1746815199256,0.26431738,636.66,636.02,1.6]
[1746815199551,0.27350427,636.67,636.02,1.6]
[1746815199552,0.26431738,636.65,636.02,1.6]
[1746815199856,0.26431738,636.64,636.02,1.6]
[1746815200155,0.26431738,636.63,636.02,1.6]
[1746815200459,0.26431738,636.62,636.02,1.6]
[1746815200657,0.26431738,636.61,636.02,1.6]
[1746815201062,0.26431738,636.6,636.02,1.6]
[1746815201261,0.53782488,636.6,636.02,1.6]
[1746815201757,0.26431738,636.59,636.02,1.6]
[1746815204263,0.26431738,636.67,636.02,1.6]
[1746815204461,0.27352147,636.58,636.02,1.6]
[1746815204659,0.26431738,636.66,636.02,1.6]
[1746815204862,0.561,636.58,636.02,1.6]
[1746815205266,0.26432492,636.57,636.02,1.6]
[1746815205559,0.53787864,636.57,636.02,1.6]
[1746815205963,0.26432492,636.56,636.02,1.6]
[1746815207064,0.26432492,636.55,636.02,1.6]
[1746815207264,0.53787864,636.55,636.02,1.6]
[1746815207467,0.27355372,636.55,636.02,1.6]
[1746815207761,0.26432492,636.54,636.02,1.6]
[1746815212767,0.26429258,636.52,636.02,1.6]
[1746815213265,0.2735591,636.51,636.02,1.6]
[1746815213566,0.26429258,636.5,636.02,1.6]
[1746815217573,0.2735591,636.51,636.02,1.6]
[1746815217972,0.26432485,636.5,636.02,1.6]
[1746815219271,0.27353437,636.5,636.02,1.6]
[1746815219671,0.26432485,636.49,636.02,1.6]
[1746815219971,0.26432485,636.49,636.02,1.068]
[1746815223473,0.26432485,636.49,636.02,1.507]
[1746815225067,0.26432485,636.57,636.02,1.507]
[1746815225270,0.27356232,636.48,636.02,1.507]
[1746815225469,0.26432485,636.57,636.02,1.507]
[1746815225670,0.27356232,636.47,636.02,1.507]
[1746815225974,0.26432485,636.46,636.02,1.507]
[1746815226470,0.53788717,636.46,636.02,1.507]
[1746815226775,0.27356232,636.46,636.02,1.507]
[1746815226976,0.26432485,636.45,636.02,1.507]
[1746815228069,0.26432485,636.57,636.02,1.507]
[1746815228272,0.27354727,636.44,636.02,1.507]
[1746815228478,0.26432485,636.43,636.02,1.507]
[1746815228875,0.27354727,636.44,636.02,1.507]
[1746815229482,0.26432485,636.43,636.02,1.507]
[1746815230982,0.26432485,636.57,636.02,1.507]
[1746815231185,0.27354727,636.44,636.02,1.507]
[1746815231385,0.26432485,636.56,636.02,1.507]
[1746815231593,0.561,636.58,636.02,1.507]
[1746815231786,0.27354727,636.44,636.02,1.507]
[1746815231987,0.26433419,636.57,636.02,1.507]
[1746815232187,0.27354727,636.44,636.02,1.507]
[1746815232387,0.26433419,636.43,636.02,1.507]
[1746815233987,0.26433419,636.57,636.02,1.507]
[1746815234184,0.27354727,636.42,636.02,1.507]
[1746815234388,0.26433419,636.56,636.02,1.507]
[1746815234590,0.26433419,636.55,636.02,1.507]
[1746815234885,0.26433419,636.54,636.02,1.507]
[1746815235191,0.53790512,636.54,636.02,1.507]
[1746815235384,0.26433419,636.53,636.02,1.507]
[1746815235588,0.26433419,636.52,636.02,1.507]
[1746815235990,0.26433419,636.53,636.02,1.507]
[1746815237192,0.27357093,636.52,636.02,1.507]
[1746815237391,0.26433419,636.51,636.02,1.507]
[1746815240194,0.27357953,636.5,636.02,1.507]
[1746815240690,0.26433419,636.49,636.02,1.507]
[1746815243190,0.27357953,636.48,636.02,1.507]
[1746815243795,0.26433419,636.47,636.02,1.507]
[1746815246100,0.561,636.58,636.02,1.507]
[1746815246300,0.27357953,636.46,636.02,1.507]
[1746815246694,0.26417663,636.57,636.02,1.507]
[1746815247401,0.27357953,636.56,636.02,1.507]
[1746815248104,0.26417853,636.55,636.02,1.507]
[1746815249197,0.27356447,636.54,636.02,1.507]
[1746815249500,0.26417853,636.53,636.02,1.507]
[1746815252204,0.2735677,636.52,636.02,1.507]
[1746815252603,0.26417853,636.51,636.02,1.507]
[1746815255206,0.27356447,636.5,636.02,1.507]
[1746815255405,0.26417853,636.49,636.02,1.507]
[1746815258403,0.27356447,636.48,636.02,1.507]
[1746815258707,0.27356447,636.48,636.02,1.068]
[1746815258907,0.26417853,636.47,636.02,1.068]
[1746815261108,0.26417853,636.57,636.02,1.068]
[1746815262307,0.27354727,636.56,636.02,1.068]
[1746815262706,0.27354727,636.56,636.02,1.601]
[1746815262903,0.26417853,636.55,636.02,1.601]
[1746815263209,0.27354727,636.56,636.02,1.601]
[1746815263511,0.26432283,636.55,636.02,1.601]
[1746815264410,0.27353867,636.54,636.02,1.601]
[1746815264906,0.26432283,636.53,636.02,1.601]
[1746815267206,0.27353867,636.52,636.02,1.601]
[1746815267510,0.26432283,636.51,636.02,1.601]
[1746815270211,0.27353867,636.5,636.02,1.601]
[1746815270412,0.26432283,636.49,636.02,1.601]
[1746815273214,0.27353867,636.48,636.02,1.601]
[1746815273610,0.26432283,636.47,636.02,1.601]
[1746815276317,0.27354727,636.46,636.02,1.601]
[1746815276917,0.26432283,636.45,636.02,1.601]
[1746815279218,0.26432283,636.57,636.02,1.601]
[1746815279419,0.5378701,636.44,636.02,1.601]
[1746815279617,0.26432283,636.43,636.02,1.601]
[1746815280019,0.26432283,636.57,636.02,1.601]
[1746815280320,0.561,636.58,636.02,1.601]
[1746815280820,0.26433543,636.57,636.02,1.601]
[1746815281020,0.5378827,636.57,636.02,1.601]
[1746815281523,0.26433543,636.56,636.02,1.601]
[1746815282420,0.26433543,636.57,636.02,1.601]
[1746815283424,0.27354727,636.56,636.02,1.601]
[1746815284224,0.26433876,636.55,636.02,1.601]
[1746815288327,0.26433876,636.57,636.02,1.601]
[1746815288525,0.27357953,636.54,636.02,1.601]
[1746815289028,0.26433876,636.53,636.02,1.601]
[1746815291325,0.26433876,636.57,636.02,1.601]
[1746815292329,0.27358598,636.56,636.02,1.601]
[1746815292932,0.26433876,636.55,636.02,1.601]
[1746815294232,0.27358598,636.54,636.02,1.601]
[1746815294629,0.26433876,636.53,636.02,1.601]
[1746815297236,0.26433876,636.57,636.02,1.601]
[1746815298334,0.27358598,636.56,636.02,1.601]
[1746815298934,0.26433876,636.55,636.02,1.601]
[1746815300336,0.27358598,636.54,636.02,1.601]
[1746815300736,0.26433876,636.53,636.02,1.601]
[1746815303337,0.26433876,636.57,636.02,1.601]
[1746815304539,0.27358598,636.56,636.02,1.601]
[1746815304837,0.26433876,636.55,636.02,1.601]
[1746815306337,0.27358598,636.54,636.02,1.601]
[1746815306633,0.26433876,636.53,636.02,1.601]
[1746815308038,0.27358598,636.54,636.02,1.601]
[1746815308338,0.26414252,636.53,636.02,1.601]
[1746815309239,0.27358598,636.52,636.02,1.601]
[1746815309639,0.26414252,636.51,636.02,1.601]
[1746815310541,0.26414252,636.5,636.02,1.601]
[1746815310834,0.26414252,636.49,636.02,1.601]
[1746815311241,0.26414252,636.48,636.02,1.601]
[1746815311540,0.26414252,636.48,636.02,1.068]
[1746815311735,0.26414252,636.47,636.02,1.068]
[1746815312040,0.26414252,636.46,636.02,1.068]
[1746815312341,0.26414252,636.45,636.02,1.068]
[1746815312740,0.26414252,636.44,636.02,1.068]
[1746815313143,0.26414252,636.43,636.02,1.068]
[1746815313441,0.26414252,636.42,636.02,1.068]
[1746815313742,0.26414252,636.41,636.02,1.068]
[1746815314141,0.26414252,636.4,636.02,1.068]
[1746815314641,0.26414252,636.39,636.02,1.068]
[1746815314842,0.26414252,636.38,636.02,1.068]
[1746815315242,0.53773173,636.37,636.02,1.068]
[1746815315639,0.26414252,636.36,636.02,1.068]
[1746815317045,0.26414252,636.35,636.02,1.068]
[1746815317343,0.26414252,636.34,636.02,1.068]
[1746815317739,0.26414252,636.36,636.02,1.068]
[1746815318245,0.27358921,636.35,636.02,1.068]
[1746815318845,0.26414252,636.34,636.02,1.068]
[1746815321345,0.27358813,636.33,636.02,1.068]
[1746815322250,0.26414252,636.32,636.02,1.068]
[1746815324355,0.27358813,636.31,636.02,1.068]
[1746815324655,0.26414252,636.3,636.02,1.068]
[1746815327349,0.26414252,636.57,636.02,1.068]
[1746815327551,0.27358813,636.29,636.02,1.068]
[1746815327755,0.26414252,636.57,636.02,1.068]
[1746815327951,0.26414252,636.57,635.91,0.474]
[1746815328452,0.27377646,636.56,635.91,0.474]
[1746815328957,0.26414252,636.55,635.91,0.474]
[1746815329758,0.26414252,636.55,635.91,1.153]
[1746815330355,0.27352685,636.54,635.91,1.753]
[1746815330960,0.26414252,636.53,635.91,1.753]
[1746815331557,0.743,636.52,635.91,1.753]
[1746815331963,0.26414252,636.51,635.91,1.753]
[1746815333262,0.27358921,636.5,635.91,1.753]
[1746815333562,0.26414252,636.49,635.91,1.753]
[1746815334863,0.27358921,636.5,635.91,1.753]
[1746815335363,0.26429654,636.49,635.91,1.753]
[1746815336364,0.27358921,636.48,635.91,1.753]
[1746815337065,0.26429661,636.47,635.91,1.753]
[1746815339265,0.27357845,636.46,635.91,1.753]
[1746815340164,0.26429744,636.45,635.91,1.753]
[1746815342168,0.27356985,636.44,635.91,1.753]
[1746815342567,0.26429744,636.43,635.91,1.753]
[1746815345269,0.27356985,636.42,635.91,1.753]
[1746815345767,0.26429744,636.41,635.91,1.753]
[1746815347768,0.27356985,636.42,635.91,1.753]
[1746815347965,0.26428783,636.41,635.91,1.753]
[1746815348270,0.5378222,636.41,635.91,1.753]
[1746815348471,0.27353437,636.41,635.91,1.753]
[1746815348769,0.26428783,636.4,635.91,1.753]
[1746815351265,0.27357738,636.39,635.91,1.753]
[1746815351570,0.26428783,636.38,635.91,1.753]
[1746815354371,0.26428783,636.46,635.91,1.753]
[1746815354571,0.27357738,636.38,635.91,1.753]
[1746815354770,0.26428783,636.46,635.91,1.753]
[1746815355272,0.507,636.47,635.91,1.753]
[1746815355472,0.27357738,636.45,635.91,1.753]
[1746815355668,0.26432203,636.44,635.91,1.753]
[1746815357378,0.27357738,636.43,635.91,1.753]
[1746815357779,0.26432203,636.42,635.91,1.753]
[1746815358077,0.27357738,636.43,635.91,1.753]
[1746815358476,0.26432111,636.42,635.91,1.753]
[1746815360282,0.26432111,636.46,635.91,1.753]
[1746815360579,0.27357738,636.41,635.91,1.753]
[1746815360979,0.26432111,636.4,635.91,1.753]
[1746815363375,0.26432111,636.46,635.91,1.753]
[1746815364375,0.27357738,636.45,635.91,1.753]
[1746815364779,0.26432111,636.44,635.91,1.753]
[1746815366475,0.27357738,636.43,635.91,1.753]
[1746815366981,0.26432111,636.42,635.91,1.753]
[1746815369684,0.26432111,636.46,635.91,1.753]
[1746815370285,0.27360104,636.45,635.91,1.753]
[1746815370481,0.26432111,636.44,635.91,1.753]
[1746815372287,0.27360964,636.43,635.91,1.753]
[1746815372583,0.26432111,636.42,635.91,1.753]
[1746815381290,0.27357953,636.41,635.91,1.753]
[1746815381494,0.26432111,636.4,635.91,1.753]
[1746815384397,0.27358275,636.39,635.91,1.753]
[1746815384790,0.26432111,636.38,635.91,1.753]
[1746815387194,0.26432111,636.46,635.91,1.753]
[1746815387393,0.27358598,636.37,635.91,1.753]
[1746815387597,0.26432111,636.46,635.91,1.753]
[1746815387898,0.26432111,636.46,635.91,1.279]
[1746815388497,0.27358598,636.45,635.91,1.279]
[1746815388997,0.26435933,636.44,635.91,1.279]
[1746815390201,0.26435933,636.46,635.91,1.279]
[1746815390395,0.27358598,636.43,635.91,1.279]
[1746815390800,0.26435933,636.42,635.91,1.279]
[1746815391600,0.26435933,636.42,635.91,1.801]
[1746815392997,0.507,636.47,635.91,1.801]
[1746815393398,0.26435918,636.46,635.91,1.801]
[1746815394402,0.27359028,636.45,635.91,1.801]
[1746815394798,0.26435918,636.44,635.91,1.801]
[1746815396304,0.26435918,636.46,635.91,1.801]
[1746815396504,0.27359028,636.43,635.91,1.801]
[1746815397000,0.26435918,636.42,635.91,1.801]
[1746815399207,0.26435918,636.46,635.91,1.801]
[1746815400304,0.27359028,636.45,635.91,1.801]
[1746815400704,0.26435918,636.44,635.91,1.801]
[1746815402707,0.26435918,636.46,635.91,1.801]
[1746815402904,0.26435918,636.43,635.91,1.801]
[1746815403111,0.26435918,636.46,635.91,1.801]
[1746815403311,0.27360104,636.45,635.91,1.801]
[1746815403611,0.53796022,636.45,635.91,1.801]
[1746815404110,0.26435918,636.44,635.91,1.801]
[1746815405212,0.27360104,636.43,635.91,1.801]
[1746815405611,0.26435918,636.42,635.91,1.801]
[1746815408216,0.27359243,636.41,635.91,1.801]
[1746815408612,0.26435918,636.4,635.91,1.801]
[1746815411213,0.27360104,636.39,635.91,1.801]
[1746815411711,0.27360104,636.39,635.91,1.201]
[1746815411916,0.27360104,636.39,635.91,0.679]
[1746815412117,0.26439538,636.38,635.91,0.679]
[1746815414320,0.26439538,636.38,634.4,0.99600742]
[1746815414521,0.26439538,636.38,635.01,0.532]
[1746815414721,0.26439538,636.38,635.03,0.31494575]
[1746815417224,0.5380061,636.38,635.03,0.31494575]
[1746815417525,0.26439538,636.37,635.03,0.31494575]
[1746815420223,0.27365267,636.38,635.03,0.31494575]
[1746815420826,0.26439538,636.37,635.03,0.31494575]
[1746815423230,0.26439538,636.66,635.03,0.31494575]
[1746815423430,0.27366343,636.36,635.03,0.31494575]
[1746815423731,0.26439538,636.66,635.03,0.31494575]
[1746815424133,0.26439538,636.35,635.03,0.31494575]
[1746815424328,0.27366343,636.65,635.03,0.31494575]
[1746815424631,0.26439538,636.64,635.03,0.31494575]
[1746815425636,0.26439538,636.63,635.04,0.28907357]
[1746815425835,0.26439538,636.63,635.06,0.31493087]
[1746815426029,0.26439538,636.62,635.06,0.31493087]
[1746815426333,0.26439538,636.61,635.07,0.28907357]
[1746815426537,0.26439538,636.61,635.09,0.31491599]
[1746815426834,0.26439538,636.6,635.1,0.28907357]
[1746815427038,0.26439538,636.59,635.12,0.31490112]
[1746815427336,0.27365483,636.59,635.13,0.28907357]
[1746815427535,0.27365483,636.59,635.15,0.31488624]
[1746815427732,0.26439538,636.58,635.15,0.31488624]
[1746815427931,0.26439538,636.57,635.16,0.28907357]
[1746815428131,0.26439538,636.57,635.18,0.31487137]
[1746815428336,0.26439538,636.56,635.18,0.31487137]
[1746815428537,0.26439538,636.55,635.19,0.28907357]
[1746815428730,0.26439538,636.55,635.21,0.3148565]
[1746815428932,0.26439538,636.54,635.21,0.3148565]
[1746815429337,0.27364407,636.54,635.22,0.28907357]
[1746815429537,0.27364407,636.54,635.24,0.31484163]
[1746815429739,0.26439538,636.53,635.24,0.31484163]
[1746815432435,0.27365698,636.52,635.24,0.31484163]
[1746815432840,0.26439538,636.51,635.24,0.31484163]
[1746815435541,0.2736516,636.5,635.24,0.31484163]
[1746815436242,0.26428184,636.49,635.24,0.31484163]
[1746815438345,0.27364514,636.48,635.24,0.31484163]
[1746815438640,0.26428184,636.47,635.24,0.31484163]
[1746815440347,0.26428184,636.47,635.25,0.28905006]
[1746815440648,0.26428184,636.47,635.27,0.31482676]
[1746815441548,0.27364945,636.46,635.27,0.31482676]
[1746815442049,0.26428184,636.45,635.27,0.31482676]
[1746815442349,0.27364945,636.46,635.27,0.31482676]
[1746815442750,0.26425625,636.45,635.27,0.31482676]
[1746815444252,0.27364837,636.44,635.27,0.31482676]
[1746815444452,0.26425625,636.43,635.27,0.31482676]
[1746815445848,0.26425625,636.43,635.27,0.84682676]
[1746815447155,0.26425625,636.65,635.27,0.84682676]
[1746815447455,0.2736559,636.42,635.27,0.84682676]
[1746815447649,0.26425625,636.64,635.27,0.84682676]
[1746815447849,0.26425625,636.41,635.27,0.84682676]
[1746815448049,0.519,636.63,635.27,0.84682676]
[1746815448351,0.2736559,636.4,635.27,0.84682676]
[1746815448658,0.26425625,636.62,635.27,0.84682676]
[1746815448859,0.27365913,636.39,635.27,0.84682676]
[1746815449158,0.26425625,636.61,635.27,0.84682676]
[1746815449357,0.26425625,636.6,635.27,0.84682676]
[1746815449557,0.27366128,636.38,635.27,0.84682676]
[1746815449757,0.26425625,636.59,635.27,0.84682676]
[1746815450059,0.27366128,636.37,635.27,0.84682676]
[1746815450453,0.26425625,636.36,635.27,0.84682676]
[1746815450858,0.26425625,636.62,635.27,0.84682676]
[1746815451460,0.53791753,636.61,635.27,0.84682676]
[1746815451759,0.26425625,636.6,635.27,0.84682676]
[1746815452159,0.26425625,636.59,635.27,0.84682676]
[1746815452460,0.26425625,636.58,635.27,0.84682676]
[1746815452757,0.26425625,636.57,635.27,0.84682676]
[1746815453263,0.53790032,636.56,635.27,0.84682676]
[1746815453663,0.26425625,636.55,635.27,0.84682676]
[1746815456267,0.26425625,636.62,635.27,0.84682676]
[1746815456567,0.27363546,636.54,635.27,0.84682676]
[1746815456861,0.26425625,636.61,635.27,0.84682676]
[1746815457165,0.26425625,636.53,635.27,0.84682676]
[1746815457367,0.27363546,636.6,635.27,0.84682676]
[1746815457865,0.26425625,636.59,635.27,0.84682676]
[1746815458165,0.26425625,636.58,635.27,0.84682676]
[1746815458561,0.26425625,636.57,635.27,0.84682676]
[1746815458867,0.26425625,636.59,635.27,0.84682676]
[1746815459361,0.27363546,636.58,635.27,0.84682676]
[1746815459862,0.26425625,636.57,635.27,0.84682676]
[1746815462363,0.26425625,636.62,635.27,0.84682676]
[1746815462563,0.27363546,636.56,635.27,0.84682676]
[1746815462765,0.26425625,636.55,635.27,0.84682676]
[1746815464470,0.27363546,636.56,635.27,0.84682676]
[1746815464767,0.26428537,636.55,635.27,0.84682676]
[1746815465569,0.27363546,636.54,635.27,0.84682676]
[1746815465769,0.26428537,636.53,635.27,0.84682676]
[1746815466870,0.26428537,636.53,635.27,1.37282676]
[1746815467273,0.27363546,636.54,635.27,1.37282676]
[1746815468071,0.519,636.63,635.27,1.37282676]
[1746815468275,0.26430385,636.53,635.27,1.37282676]
[1746815468471,0.53788445,636.62,635.28,0.28900915]
[1746815468972,0.26430385,636.61,635.28,0.28900915]
[1746815469572,0.26430385,636.61,635.3,0.31481189]
[1746815470274,0.26430385,636.61,635.31,0.28900915]
[1746815470471,0.26430385,636.61,635.3,0.31481189]
[1746815471368,0.273629,636.6,635.3,0.31481189]
[1746815471773,0.26430385,636.59,635.3,0.31481189]
[1746815471973,0.273629,636.6,635.3,0.31481189]
[1746815472266,0.26428409,636.59,635.3,0.31481189]
[1746815472868,0.273629,636.6,635.3,0.31481189]
[1746815473868,0.273629,636.6,635.3,0.84681189]
[1746815474074,0.519,636.63,635.3,0.84681189]
[1746815474268,0.27360426,636.59,635.3,0.84681189]
[1746815476970,2.03905118,638.01,635.3,0.84681189]
[1746815477175,0.31353859,637.88,635.3,0.84681189]
[1746815477573,0.26427729,637.87,635.3,0.84681189]
[1746815478075,0.31353859,637.88,635.3,0.84681189]
[1746815478076,0.26427729,637.86,635.3,0.84681189]
[1746815478272,0.53773428,637.86,635.3,0.84681189]
[1746815478471,0.26427729,637.85,635.3,0.84681189]
[1746815479280,0.26427729,637.84,635.3,0.84681189]
[1746815479480,0.31361726,637.72,635.3,0.84681189]
[1746815479981,0.26427729,637.71,635.3,0.84681189]
[1746815480178,0.31367136,637.61,635.3,0.84681189]
[1746815480578,0.26427729,637.6,635.3,0.84681189]
[1746815480780,0.31368612,637.58,635.3,0.84681189]
[1746815481080,0.26427729,637.57,635.3,0.84681189]
[1746815481279,0.31370088,637.55,635.3,0.84681189]
[1746815481576,0.26427729,637.54,635.3,0.84681189]
[1746815481777,0.31371564,637.52,635.3,0.84681189]
[1746815482578,0.26427729,637.51,635.3,0.84681189]
[1746815483183,0.26427729,637.5,635.3,0.84681189]
[1746815483376,0.53778586,637.5,635.3,0.84681189]
[1746815483577,0.26427729,637.49,635.3,0.84681189]
[1746815483781,0.26427729,637.48,635.3,0.84681189]
[1746815484077,0.26427729,637.47,635.3,0.84681189]
[1746815484479,0.26427729,637.46,635.3,0.84681189]
[1746815484880,0.26427729,637.45,635.3,0.84681189]
[1746815485085,0.31375994,637.43,635.3,0.84681189]
[1746815485286,0.31375994,637.43,635.31,0.28897018]
[1746815485480,0.26427729,637.42,635.41,0.3147574]
[1746815485679,2.03905118,637.38,635.41,0.3147574]
[1746815485881,0.31378947,637.37,635.41,0.3147574]
[1746815486285,0.26427729,637.36,635.41,0.3147574]
[1746815486584,0.57807661,637.35,635.41,0.3147574]
[1746815486885,0.26427729,637.34,635.41,0.3147574]
[1746815487085,0.31380917,637.33,635.41,0.3147574]
[1746815487282,0.57808646,637.33,635.41,0.3147574]
[1746815487481,0.31380917,637.33,635.41,0.3147574]